[Event "*** Titled Tuesday Blitz"]
[Site "Chess.com"]
[Date "2018.08.07"]
[Round "4"]
[White "PulpanJ"]
[Black "pedromartinez91"]
[Result "1/2-1/2"]
[WhiteElo "2522"]
[BlackElo "2420"]
[TimeControl "180+2"]
[EndTime "13:50:31 PDT"]
[Termination "Game drawn - insufficient material"]

1. e4 {[%clk 0:02:21.2]} 1... e6 {[%clk 0:03:00.2]} 2. d4 {[%clk 0:02:20.8]}
2... d5 {[%clk 0:03:01.2]} 3. exd5 {[%clk 0:02:21.8]} 3... exd5 {[%clk
0:03:02.1]} 4. Nf3 {[%clk 0:02:23.5]} 4... Bd6 {[%clk 0:03:03.1]} 5. Bg5 {[%clk
0:02:19.6]} 5... Ne7 {[%clk 0:02:58.6]} 6. Nc3 {[%clk 0:02:20.7]} 6... f6 {[%clk
0:02:56.5]} 7. Bd2 {[%clk 0:02:19.6]} 7... Nbc6 {[%clk 0:02:57.3]} 8. Nb5 {[%clk
0:02:20]} 8... Bg4 {[%clk 0:02:57.5]} 9. h3 {[%clk 0:02:20.6]} 9... Bh5 {[%clk
0:02:54.8]} 10. c3 {[%clk 0:02:21.2]} 10... Qd7 {[%clk 0:02:46.9]} 11. Be2
{[%clk 0:02:20.8]} 11... O-O-O {[%clk 0:02:41.7]} 12. Qa4 {[%clk 0:02:20.4]}
12... Kb8 {[%clk 0:02:41.5]} 13. Nxd6 {[%clk 0:02:13.1]} 13... Qxd6 {[%clk
0:02:42.2]} 14. O-O-O {[%clk 0:02:09.1]} 14... Nc8 {[%clk 0:02:39.9]} 15. Qc2
{[%clk 0:02:03.1]} 15... Nb6 {[%clk 0:02:31.6]} 16. b3 {[%clk 0:01:48.3]} 16...
Rhe8 {[%clk 0:02:21.7]} 17. Rhe1 {[%clk 0:01:46.5]} 17... Bg6 {[%clk 0:02:21.3]}
18. Bd3 {[%clk 0:01:44.3]} 18... Qa3+ {[%clk 0:02:12.4]} 19. Kb1 {[%clk
0:01:44.1]} 19... Na5 {[%clk 0:01:58.8]} 20. Bxg6 {[%clk 0:01:35.9]} 20... hxg6
{[%clk 0:01:56.3]} 21. Bc1 {[%clk 0:01:29.3]} 21... Qd6 {[%clk 0:01:39]} 22.
Qxg6 {[%clk 0:01:24.7]} 22... Rxe1 {[%clk 0:01:38.2]} 23. Rxe1 {[%clk
0:01:26.3]} 23... Qd7 {[%clk 0:01:39.5]} 24. Ba3 {[%clk 0:01:22.2]} 24... Nc8
{[%clk 0:01:24.7]} 25. Qd3 {[%clk 0:01:18.6]} 25... Re8 {[%clk 0:01:19.8]} 26.
Rxe8 {[%clk 0:01:16.2]} 26... Qxe8 {[%clk 0:01:21.7]} 27. Bc1 {[%clk 0:01:17.1]}
27... Nd6 {[%clk 0:01:17.3]} 28. Nd2 {[%clk 0:01:13.7]} 28... Qh5 {[%clk
0:01:13.4]} 29. f3 {[%clk 0:01:06.3]} 29... Nc6 {[%clk 0:01:11.9]} 30. Nf1
{[%clk 0:01:05.6]} 30... Qh4 {[%clk 0:01:07]} 31. Ne3 {[%clk 0:00:56.7]} 31...
a6 {[%clk 0:00:58]} 32. Nxd5 {[%clk 0:00:56.8]} 32... Qe1 {[%clk 0:00:35.6]} 33.
Ne3 {[%clk 0:00:56.1]} 33... Nb5 {[%clk 0:00:33.7]} 34. Kc2 {[%clk 0:00:55.9]}
34... Nbxd4+ {[%clk 0:00:32.8]} 35. Kb2 {[%clk 0:00:42.6]} 35... Ne6 {[%clk
0:00:21.9]} 36. Qf1 {[%clk 0:00:40.3]} 36... Qxf1 {[%clk 0:00:21]} 37. Nxf1
{[%clk 0:00:42.2]} 37... Ne5 {[%clk 0:00:21.8]} 38. Kc2 {[%clk 0:00:40.6]} 38...
Kc8 {[%clk 0:00:22.7]} 39. Ng3 {[%clk 0:00:37.1]} 39... Kd7 {[%clk 0:00:22.4]}
40. Be3 {[%clk 0:00:29.2]} 40... Ng6 {[%clk 0:00:23.4]} 41. Nf5 {[%clk
0:00:25.6]} 41... Ke8 {[%clk 0:00:24.6]} 42. Kd2 {[%clk 0:00:24.3]} 42... Kf7
{[%clk 0:00:25.9]} 43. Ke2 {[%clk 0:00:24.3]} 43... Ne5 {[%clk 0:00:27.2]} 44.
Nd4 {[%clk 0:00:22.4]} 44... Nd8 {[%clk 0:00:27.5]} 45. Bf4 {[%clk 0:00:22.1]}
45... c5 {[%clk 0:00:17.9]} 46. Bxe5 {[%clk 0:00:22.9]} 46... fxe5 {[%clk
0:00:17.4]} 47. Nf5 {[%clk 0:00:24.8]} 47... Kf6 {[%clk 0:00:16.3]} 48. Nd6
{[%clk 0:00:25.6]} 48... Ke6 {[%clk 0:00:17.6]} 49. Ne4 {[%clk 0:00:26.3]} 49...
b6 {[%clk 0:00:18.1]} 50. h4 {[%clk 0:00:27.5]} 50... Kf5 {[%clk 0:00:18.2]} 51.
g4+ {[%clk 0:00:28.4]} 51... Ke6 {[%clk 0:00:19]} 52. h5 {[%clk 0:00:29.1]}
52... Nc6 {[%clk 0:00:20.3]} 53. g5 {[%clk 0:00:30.2]} 53... Ne7 {[%clk
0:00:21.6]} 54. Kf2 {[%clk 0:00:27.1]} 54... Nd5 {[%clk 0:00:23]} 55. Kg3 {[%clk
0:00:27.2]} 55... Kf5 {[%clk 0:00:24.3]} 56. h6 {[%clk 0:00:27.3]} 56... gxh6
{[%clk 0:00:26.2]} 57. gxh6 {[%clk 0:00:28.8]} 57... Kg6 {[%clk 0:00:27.4]} 58.
Ng5 {[%clk 0:00:28.6]} 58... Kxh6 {[%clk 0:00:23.8]} 59. Nf7+ {[%clk 0:00:29.7]}
59... Kg7 {[%clk 0:00:25.2]} 60. Nxe5 {[%clk 0:00:31.6]} 60... Nxc3 {[%clk
0:00:26.4]} 61. Nd7 {[%clk 0:00:32.4]} 61... Nxa2 {[%clk 0:00:22.1]} 62. Nxb6
{[%clk 0:00:33.5]} 62... Nc1 {[%clk 0:00:23.4]} 63. Kf4 {[%clk 0:00:34.9]} 63...
Nxb3 {[%clk 0:00:24.5]} 64. Ke4 {[%clk 0:00:36.4]} 64... Kf6 {[%clk 0:00:24]}
65. Kd5 {[%clk 0:00:37.8]} 65... a5 {[%clk 0:00:17.4]} 66. Kc4 {[%clk
0:00:38.8]} 66... Nd2+ {[%clk 0:00:18.8]} 67. Kxc5 {[%clk 0:00:39.7]} 67... Nxf3
{[%clk 0:00:20.7]} 68. Nc4 {[%clk 0:00:40.2]} 68... a4 {[%clk 0:00:20.7]} 69.
Kb4 {[%clk 0:00:42.1]} 69... Ne5 {[%clk 0:00:20.9]} 70. Kxa4 {[%clk 0:00:41.7]}
70... Nxc4 {[%clk 0:00:21.7]} 1/2-1/2

[Event "*** Titled Tuesday Blitz"]
[Site "Chess.com"]
[Date "2018.08.07"]
[Round "4"]
[White "djano"]
[Black "Cocaino74"]
[Result "1-0"]
[WhiteElo "2365"]
[BlackElo "2193"]
[TimeControl "180+2"]
[EndTime "13:50:57 PDT"]
[Termination "djano won by resignation"]

1. c4 {[%clk 0:03:01.9]} 1... e6 {[%clk 0:03:00.3]} 2. g3 {[%clk 0:03:00.3]}
2... d5 {[%clk 0:02:57.6]} 3. Bg2 {[%clk 0:03:02.2]} 3... dxc4 {[%clk
0:02:58.7]} 4. Nf3 {[%clk 0:03:02.5]} 4... a6 {[%clk 0:02:57.6]} 5. a3 {[%clk
0:03:02.1]} 5... b5 {[%clk 0:02:58.1]} 6. O-O {[%clk 0:03:00.8]} 6... Bb7 {[%clk
0:02:57.1]} 7. a4 {[%clk 0:02:59.3]} 7... Nf6 {[%clk 0:02:55.8]} 8. b3 {[%clk
0:03:00.3]} 8... cxb3 {[%clk 0:02:50.2]} 9. Qxb3 {[%clk 0:03:02.2]} 9... b4
{[%clk 0:02:51.6]} 10. Bb2 {[%clk 0:02:53.8]} 10... Nbd7 {[%clk 0:02:47.4]} 11.
d4 {[%clk 0:02:52.9]} 11... Be7 {[%clk 0:02:44.3]} 12. Nbd2 {[%clk 0:02:53.4]}
12... c5 {[%clk 0:02:16.4]} 13. e4 {[%clk 0:02:50.9]} 13... Nxe4 {[%clk
0:02:06.1]} 14. Nxe4 {[%clk 0:02:44.8]} 14... Bxe4 {[%clk 0:02:07.5]} 15. dxc5
{[%clk 0:02:43.4]} 15... Nxc5 {[%clk 0:01:40.6]} 16. Qxb4 {[%clk 0:02:42]} 16...
Rb8 {[%clk 0:01:40.7]} 17. Qc3 {[%clk 0:02:26]} 17... f6 {[%clk 0:01:26.3]} 18.
Rfd1 {[%clk 0:02:20.9]} 18... Qb6 {[%clk 0:01:26.7]} 19. Ba3 {[%clk 0:02:17.1]}
19... Nxa4 {[%clk 0:01:06.3]} 20. Qe1 {[%clk 0:02:17.2]} 20... Bxa3 {[%clk
0:00:25.1]} 21. Qxe4 {[%clk 0:02:13.2]} 21... Nc3 {[%clk 0:00:24.7]} 22. Qg4
{[%clk 0:02:06.6]} 22... Nxd1 {[%clk 0:00:24.2]} 23. Qxg7 {[%clk 0:02:07.1]}
23... Nxf2 {[%clk 0:00:06]} 24. Qxh8+ {[%clk 0:02:00]} 24... Bf8 {[%clk
0:00:05.7]} 25. h3 {[%clk 0:01:46.3]} 25... Ng4+ {[%clk 0:00:04.6]} 26. Kh1
{[%clk 0:01:47.6]} 26... Qb1+ {[%clk 0:00:04.6]} 27. Rxb1 {[%clk 0:01:46.6]}
27... Rxb1+ {[%clk 0:00:06.5]} 28. Bf1 {[%clk 0:01:48.1]} 28... Rxf1+ {[%clk
0:00:08]} 29. Kg2 {[%clk 0:01:49.4]} 29... Ne3+ {[%clk 0:00:09.7]} 30. Kh2
{[%clk 0:01:48.6]} 30... Rf2+ {[%clk 0:00:10.2]} 31. Kg1 {[%clk 0:01:38]} 31...
Rf1+ {[%clk 0:00:11.5]} 32. Kh2 {[%clk 0:01:36.9]} 32... Rf2+ {[%clk 0:00:13.4]}
33. Kg1 {[%clk 0:01:37.7]} 33... Rxf3 {[%clk 0:00:14.7]} 34. Qxh7 {[%clk
0:01:35.6]} 34... Rf5 {[%clk 0:00:12]} 35. g4 {[%clk 0:01:33.5]} 35... Re5
{[%clk 0:00:09.6]} 36. Qg6+ {[%clk 0:01:30.6]} 36... Ke7 {[%clk 0:00:07.9]} 37.
Kf2 {[%clk 0:01:29.1]} 37... a5 {[%clk 0:00:08.5]} 38. Qd3 {[%clk 0:01:27.4]}
38... Nd5 {[%clk 0:00:08.1]} 39. Qa3+ {[%clk 0:01:27.2]} 39... Kf7 {[%clk
0:00:05.4]} 40. Qxa5 {[%clk 0:01:25.6]} 40... Nf4 {[%clk 0:00:05.5]} 41. Qa7+
{[%clk 0:01:23.1]} 41... Kg6 {[%clk 0:00:06.6]} 42. Kf3 {[%clk 0:01:23.8]} 42...
Nxh3 {[%clk 0:00:07.1]} 43. Qa8 {[%clk 0:01:18.3]} 43... Ng5+ {[%clk 0:00:08.3]}
44. Kg3 {[%clk 0:01:19.7]} 44... Kf7 {[%clk 0:00:09.2]} 45. Qa7+ {[%clk
0:01:17.9]} 45... Be7 {[%clk 0:00:10.7]} 46. Qb7 {[%clk 0:01:18.8]} 46... Rd5
{[%clk 0:00:11.4]} 47. Kg2 {[%clk 0:01:17.5]} 47... Ne4 {[%clk 0:00:11.8]} 48.
Qa8 {[%clk 0:01:15]} 48... Rd2+ {[%clk 0:00:08.7]} 49. Kf3 {[%clk 0:01:13.9]}
49... Ng5+ {[%clk 0:00:09.4]} 50. Ke3 {[%clk 0:01:15.1]} 50... Rd8 {[%clk
0:00:09.1]} 51. Qa7 {[%clk 0:01:16.1]} 51... Rd5 {[%clk 0:00:08.4]} 52. Ke2
{[%clk 0:01:16.4]} 52... Re5+ {[%clk 0:00:09.5]} 53. Kd3 {[%clk 0:01:15.7]}
53... Rd5+ {[%clk 0:00:09.7]} 54. Kc4 {[%clk 0:01:15.5]} 54... Ne4 {[%clk
0:00:10.6]} 55. Qe3 {[%clk 0:01:12.7]} 55... Nd6+ {[%clk 0:00:11.2]} 56. Kb3
{[%clk 0:01:12.7]} 56... Nb5 {[%clk 0:00:08.6]} 57. Qh6 {[%clk 0:01:11.7]} 57...
Ke8 {[%clk 0:00:09.5]} 58. Qh1 {[%clk 0:01:08.1]} 58... Kd7 {[%clk 0:00:10.2]}
59. Qa1 {[%clk 0:01:08.3]} 59... Nd4+ {[%clk 0:00:08.5]} 60. Kc4 {[%clk
0:01:08.7]} 60... Nc6 {[%clk 0:00:09.4]} 61. Qa8 {[%clk 0:01:02.2]} 61... Ne5+
{[%clk 0:00:08.8]} 62. Kb3 {[%clk 0:01:01.7]} 62... Nxg4 {[%clk 0:00:09.2]} 63.
Qa4+ {[%clk 0:01:02.3]} 63... Kd6 {[%clk 0:00:07.3]} 64. Qxg4 {[%clk 0:01:03.7]}
64... f5 {[%clk 0:00:07.7]} 65. Qg8 {[%clk 0:01:03]} 65... Ke5 {[%clk
0:00:06.6]} 66. Qe8 {[%clk 0:01:02.1]} 66... Bf6 {[%clk 0:00:06]} 67. Qb8+
{[%clk 0:01:00]} 67... Ke4 {[%clk 0:00:06.1]} 68. Qe8 {[%clk 0:01:01.9]} 68...
e5 {[%clk 0:00:05]} 69. Qf7 {[%clk 0:01:03.2]} 69... Bd8 {[%clk 0:00:04.7]} 70.
Qb7 {[%clk 0:01:02.5]} 70... Bg5 {[%clk 0:00:04.7]} 71. Kc4 {[%clk 0:01:03.2]}
71... Be3 {[%clk 0:00:04.9]} 72. Qxd5+ {[%clk 0:01:04]} 72... Kf4 {[%clk
0:00:05.7]} 73. Qg2 {[%clk 0:01:01.3]} 73... e4 {[%clk 0:00:06.5]} 74. Kd5
{[%clk 0:01:02.7]} 74... Ba7 {[%clk 0:00:06.8]} 75. Ke6 {[%clk 0:01:03.5]} 75...
e3 {[%clk 0:00:07.8]} 76. Qf1+ {[%clk 0:01:04.7]} 76... Kg3 {[%clk 0:00:08.3]}
77. Kxf5 {[%clk 0:01:05]} 77... e2 {[%clk 0:00:09.9]} 78. Qxe2 {[%clk 0:01:06]}
78... Bf2 {[%clk 0:00:11.3]} 1-0

[Event "*** Titled Tuesday Blitz"]
[Site "Chess.com"]
[Date "2018.08.07"]
[Round "4"]
[White "misha_melnichuk"]
[Black "morphy1984"]
[Result "1/2-1/2"]
[WhiteElo "2610"]
[BlackElo "2515"]
[TimeControl "180+2"]
[EndTime "13:51:27 PDT"]
[Termination "Game drawn - insufficient material"]

1. Nf3 {[%clk 0:02:58]} 1... Nf6 {[%clk 0:02:58.8]} 2. g3 {[%clk 0:02:58.8]}
2... g6 {[%clk 0:02:59.2]} 3. Bg2 {[%clk 0:03:00.2]} 3... Bg7 {[%clk 0:02:59.9]}
4. O-O {[%clk 0:03:01.7]} 4... O-O {[%clk 0:03:00.5]} 5. d4 {[%clk 0:03:03.1]}
5... d6 {[%clk 0:03:00.6]} 6. b3 {[%clk 0:03:02.8]} 6... Nbd7 {[%clk 0:02:55.7]}
7. Bb2 {[%clk 0:03:03.5]} 7... e5 {[%clk 0:02:56]} 8. dxe5 {[%clk 0:03:04.3]}
8... Ng4 {[%clk 0:02:56.1]} 9. c4 {[%clk 0:03:04.7]} 9... Ngxe5 {[%clk
0:02:54.1]} 10. Nc3 {[%clk 0:03:03.6]} 10... Nxf3+ {[%clk 0:02:47.9]} 11. Bxf3
{[%clk 0:03:03.6]} 11... Ne5 {[%clk 0:02:48.1]} 12. Bg2 {[%clk 0:03:04.2]} 12...
c6 {[%clk 0:02:43.7]} 13. Qd2 {[%clk 0:03:01.1]} 13... Qc7 {[%clk 0:02:37.3]}
14. Rad1 {[%clk 0:02:57.2]} 14... Rd8 {[%clk 0:02:37.5]} 15. Ne4 {[%clk
0:02:52.3]} 15... d5 {[%clk 0:02:32.3]} 16. cxd5 {[%clk 0:02:44]} 16... Rxd5
{[%clk 0:02:28.2]} 17. Qc2 {[%clk 0:02:27.9]} 17... Rxd1 {[%clk 0:02:25.1]} 18.
Rxd1 {[%clk 0:02:28.9]} 18... Bf5 {[%clk 0:02:19.9]} 19. h3 {[%clk 0:02:24.5]}
19... Rd8 {[%clk 0:01:55.3]} 20. Rxd8+ {[%clk 0:02:18.6]} 20... Qxd8 {[%clk
0:01:55.7]} 21. g4 {[%clk 0:01:51.3]} 21... Bxe4 {[%clk 0:01:20.6]} 22. Bxe4
{[%clk 0:01:50.9]} 22... f6 {[%clk 0:01:16.2]} 23. f4 {[%clk 0:01:31.9]} 23...
Nf7 {[%clk 0:01:16.2]} 24. Qd3 {[%clk 0:01:26.6]} 24... Nd6 {[%clk 0:01:03.8]}
25. Bf3 {[%clk 0:01:10.6]} 25... Qe7 {[%clk 0:00:55]} 26. Kg2 {[%clk 0:00:54]}
26... f5 {[%clk 0:00:53.2]} 27. Ba3 {[%clk 0:00:50.5]} 27... Bf8 {[%clk
0:00:51.8]} 28. g5 {[%clk 0:00:43.4]} 28... Qe6 {[%clk 0:00:47.6]} 29. Bb2
{[%clk 0:00:34.8]} 29... Bg7 {[%clk 0:00:46.1]} 30. Bxg7 {[%clk 0:00:35.3]}
30... Kxg7 {[%clk 0:00:46.7]} 31. Qd4+ {[%clk 0:00:36.4]} 31... Kf7 {[%clk
0:00:45.4]} 32. Qxa7 {[%clk 0:00:36.6]} 32... Qe7 {[%clk 0:00:31.2]} 33. Qd4
{[%clk 0:00:35.2]} 33... Qe6 {[%clk 0:00:20.5]} 34. Qh8 {[%clk 0:00:34.2]} 34...
Ke7 {[%clk 0:00:13.8]} 35. Qxh7+ {[%clk 0:00:33.6]} 35... Nf7 {[%clk 0:00:14.7]}
36. Qg7 {[%clk 0:00:27.3]} 36... Qe3 {[%clk 0:00:15.4]} 37. Qf6+ {[%clk
0:00:27.6]} 37... Kf8 {[%clk 0:00:16.1]} 38. Qxg6 {[%clk 0:00:16.8]} 38... Qxf4
{[%clk 0:00:16.8]} 39. Qh5 {[%clk 0:00:10]} 39... Nxg5 {[%clk 0:00:14.6]} 40.
Qh8+ {[%clk 0:00:10.1]} 40... Ke7 {[%clk 0:00:12.7]} 41. Qh6 {[%clk 0:00:09.8]}
41... Qd2 {[%clk 0:00:07.7]} 42. Qg7+ {[%clk 0:00:08.7]} 42... Ke6 {[%clk
0:00:07.8]} 43. Qg8+ {[%clk 0:00:08.5]} 43... Ke7 {[%clk 0:00:07.3]} 44. Qg7+
{[%clk 0:00:08.8]} 44... Ke6 {[%clk 0:00:06.9]} 45. Qg6+ {[%clk 0:00:09.9]}
45... Ke5 {[%clk 0:00:06.3]} 46. Qe8+ {[%clk 0:00:11]} 46... Kf6 {[%clk
0:00:06.7]} 47. Qf8+ {[%clk 0:00:09.2]} 47... Kg6 {[%clk 0:00:07.5]} 48. Qg8+
{[%clk 0:00:09.1]} 48... Kf6 {[%clk 0:00:08.3]} 49. Qh8+ {[%clk 0:00:09.6]}
49... Kg6 {[%clk 0:00:09.3]} 50. Qe8+ {[%clk 0:00:10.1]} 50... Kf6 {[%clk
0:00:09.9]} 51. Qg8 {[%clk 0:00:10.5]} 51... Nxf3 {[%clk 0:00:08]} 52. Kxf3
{[%clk 0:00:11.2]} 52... Qc3+ {[%clk 0:00:07.3]} 53. Kg2 {[%clk 0:00:11]} 53...
Qc2 {[%clk 0:00:07.2]} 54. Qh8+ {[%clk 0:00:11.5]} 54... Kf7 {[%clk 0:00:07.1]}
55. Qh5+ {[%clk 0:00:12.2]} 55... Kf6 {[%clk 0:00:08]} 56. Qh6+ {[%clk
0:00:13.3]} 56... Kf7 {[%clk 0:00:08.9]} 57. Qh7+ {[%clk 0:00:14.1]} 57... Kf6
{[%clk 0:00:09.7]} 58. Kf2 {[%clk 0:00:15.1]} 58... Qxa2 {[%clk 0:00:10]} 59.
Qxb7 {[%clk 0:00:15.7]} 59... Qc2 {[%clk 0:00:09.9]} 60. Qc8 {[%clk 0:00:13.9]}
60... Qc5+ {[%clk 0:00:10.3]} 61. Kf1 {[%clk 0:00:13.8]} 61... Qc1+ {[%clk
0:00:11]} 62. Kg2 {[%clk 0:00:14.3]} 62... Qg5+ {[%clk 0:00:12.1]} 63. Kf2
{[%clk 0:00:14.9]} 63... Qf4+ {[%clk 0:00:13.1]} 64. Kg2 {[%clk 0:00:16.3]}
64... Qg5+ {[%clk 0:00:14]} 65. Kh1 {[%clk 0:00:17.3]} 65... Qc1+ {[%clk
0:00:14.1]} 66. Kg2 {[%clk 0:00:17.3]} 66... Qg5+ {[%clk 0:00:14.9]} 67. Kf3
{[%clk 0:00:17.9]} 67... Qh5+ {[%clk 0:00:15.4]} 68. Kf2 {[%clk 0:00:17.3]}
68... Qh4+ {[%clk 0:00:12.5]} 69. Ke3 {[%clk 0:00:16.2]} 69... Qxh3+ {[%clk
0:00:12.8]} 70. Kd2 {[%clk 0:00:17.6]} 70... Qxb3 {[%clk 0:00:10.5]} 71. Qxc6+
{[%clk 0:00:18.8]} 71... Qe6 {[%clk 0:00:11.4]} 72. Qxe6+ {[%clk 0:00:19.5]}
72... Kxe6 {[%clk 0:00:12.1]} 73. Ke3 {[%clk 0:00:21.4]} 73... Ke5 {[%clk
0:00:13]} 74. Kf3 {[%clk 0:00:22.7]} 74... f4 {[%clk 0:00:13.3]} 75. e3 {[%clk
0:00:23.5]} 75... fxe3 {[%clk 0:00:14.1]} 76. Kxe3 {[%clk 0:00:25]} 1/2-1/2

[Event "*** Titled Tuesday Blitz"]
[Site "Chess.com"]
[Date "2018.08.07"]
[Round "4"]
[White "ahmadzada13"]
[Black "ShimanovAlex"]
[Result "1/2-1/2"]
[WhiteElo "2639"]
[BlackElo "2767"]
[TimeControl "180+2"]
[EndTime "13:52:00 PDT"]
[Termination "Game drawn - insufficient material"]

1. e4 {[%clk 0:03:01.1]} 1... c6 {[%clk 0:03:00]} 2. d4 {[%clk 0:03:00.8]} 2...
d5 {[%clk 0:03:00.9]} 3. Nd2 {[%clk 0:03:01.9]} 3... dxe4 {[%clk 0:03:01.4]} 4.
Nxe4 {[%clk 0:03:03.2]} 4... Bf5 {[%clk 0:03:01.6]} 5. Ng3 {[%clk 0:03:04.1]}
5... Bg6 {[%clk 0:03:02.8]} 6. Nf3 {[%clk 0:03:01.4]} 6... e6 {[%clk 0:03:03.4]}
7. Bd3 {[%clk 0:03:02.7]} 7... Nd7 {[%clk 0:03:03.5]} 8. O-O {[%clk 0:03:02.4]}
8... Ngf6 {[%clk 0:03:04.7]} 9. c4 {[%clk 0:03:02.4]} 9... Bd6 {[%clk
0:03:05.5]} 10. b3 {[%clk 0:03:02.9]} 10... O-O {[%clk 0:03:06.2]} 11. Bb2
{[%clk 0:03:03.7]} 11... Qc7 {[%clk 0:03:05.7]} 12. Bxg6 {[%clk 0:03:02.8]}
12... hxg6 {[%clk 0:03:06.5]} 13. Qe2 {[%clk 0:03:04.3]} 13... Rad8 {[%clk
0:03:01.8]} 14. Ne4 {[%clk 0:03:04.7]} 14... Rfe8 {[%clk 0:02:58]} 15. Nxf6+
{[%clk 0:03:03.5]} 15... gxf6 {[%clk 0:02:57.9]} 16. Rad1 {[%clk 0:02:51.3]}
16... Bf8 {[%clk 0:02:57.6]} 17. g3 {[%clk 0:02:50.5]} 17... Bg7 {[%clk
0:02:58.5]} 18. Rfe1 {[%clk 0:02:50.6]} 18... f5 {[%clk 0:02:56.9]} 19. d5
{[%clk 0:02:25.6]} 19... cxd5 {[%clk 0:01:54.4]} 20. Bxg7 {[%clk 0:02:12.8]}
20... Kxg7 {[%clk 0:01:56.3]} 21. cxd5 {[%clk 0:02:08.8]} 21... Nf6 {[%clk
0:01:42.9]} 22. dxe6 {[%clk 0:01:57.7]} 22... Rxe6 {[%clk 0:01:42.6]} 23. Qb2
{[%clk 0:01:53.1]} 23... Rxd1 {[%clk 0:01:20.8]} 24. Rxd1 {[%clk 0:01:52.8]}
24... Rc6 {[%clk 0:01:21.7]} 25. Nd4 {[%clk 0:01:20.9]} 25... Rd6 {[%clk
0:01:18.4]} 26. Rd2 {[%clk 0:01:08.6]} 26... Qd8 {[%clk 0:01:17.3]} 27. Nf3
{[%clk 0:01:03.9]} 27... Kg8 {[%clk 0:01:12.2]} 28. Rxd6 {[%clk 0:01:02.2]}
28... Qxd6 {[%clk 0:01:14.1]} 29. Qd4 {[%clk 0:00:58.6]} 29... Qxd4 {[%clk
0:01:09.9]} 30. Nxd4 {[%clk 0:00:59]} 30... a6 {[%clk 0:01:11.6]} 31. f3 {[%clk
0:00:54.6]} 31... Kf8 {[%clk 0:01:12.8]} 32. Kf2 {[%clk 0:00:55.2]} 32... Ke7
{[%clk 0:01:14.3]} 33. Ke3 {[%clk 0:00:56.2]} 33... Kd6 {[%clk 0:01:15.8]} 34.
Kd3 {[%clk 0:00:52.9]} 34... Nd5 {[%clk 0:01:16.3]} 35. Nc2 {[%clk 0:00:48.3]}
35... f4 {[%clk 0:01:15.1]} 36. g4 {[%clk 0:00:42.9]} 36... g5 {[%clk
0:01:05.5]} 37. Ke4 {[%clk 0:00:22.5]} 37... f6 {[%clk 0:01:05.6]} 38. Nd4
{[%clk 0:00:14.7]} 38... Nc3+ {[%clk 0:01:05.4]} 39. Kf5 {[%clk 0:00:15.6]}
39... Ke7 {[%clk 0:01:07]} 40. a4 {[%clk 0:00:16.7]} 40... Nd5 {[%clk
0:00:58.5]} 41. Ke4 {[%clk 0:00:15]} 41... Nb4 {[%clk 0:00:57.2]} 42. Nf5+
{[%clk 0:00:11.9]} 42... Ke6 {[%clk 0:00:58.3]} 43. Nd4+ {[%clk 0:00:13]} 43...
Kd7 {[%clk 0:00:57.2]} 44. Kf5 {[%clk 0:00:13.1]} 44... Ke7 {[%clk 0:00:58.5]}
45. h4 {[%clk 0:00:08.1]} 45... gxh4 {[%clk 0:00:59.2]} 46. Kxf4 {[%clk
0:00:09.6]} 46... Nd5+ {[%clk 0:01:00.5]} 47. Ke4 {[%clk 0:00:09.3]} 47... Nc3+
{[%clk 0:00:57.7]} 48. Kd3 {[%clk 0:00:08.6]} 48... Nd5 {[%clk 0:00:57]} 49.
Nf5+ {[%clk 0:00:09.8]} 49... Ke6 {[%clk 0:00:56.8]} 50. Nxh4 {[%clk 0:00:11.3]}
50... Ke5 {[%clk 0:00:58.3]} 51. Ng6+ {[%clk 0:00:12.4]} 51... Ke6 {[%clk
0:00:58.2]} 52. f4 {[%clk 0:00:13.6]} 52... Nb4+ {[%clk 0:00:57.6]} 53. Kc4
{[%clk 0:00:13.5]} 53... Nc6 {[%clk 0:00:59.1]} 54. Kc5 {[%clk 0:00:13.3]} 54...
Kd7 {[%clk 0:00:50.4]} 55. g5 {[%clk 0:00:10.9]} 55... fxg5 {[%clk 0:00:50.9]}
56. fxg5 {[%clk 0:00:12.4]} 56... a5 {[%clk 0:00:47.7]} 57. Nf4 {[%clk
0:00:09.2]} 57... Ke7 {[%clk 0:00:43]} 58. g6 {[%clk 0:00:10.4]} 58... Kf6
{[%clk 0:00:44.2]} 59. Kb6 {[%clk 0:00:10]} 59... Nd4 {[%clk 0:00:45.4]} 60.
Kxb7 {[%clk 0:00:11.4]} 60... Nxb3 {[%clk 0:00:46.5]} 61. Kc6 {[%clk 0:00:12.9]}
61... Kg7 {[%clk 0:00:42.9]} 62. Kb5 {[%clk 0:00:13.8]} 62... Kf6 {[%clk
0:00:43.6]} 63. Kc4 {[%clk 0:00:13.9]} 63... Nd2+ {[%clk 0:00:44.5]} 64. Kc5
{[%clk 0:00:10.1]} 64... Nb3+ {[%clk 0:00:45.1]} 65. Kb5 {[%clk 0:00:11.2]}
65... Kg7 {[%clk 0:00:45.6]} 66. Kb6 {[%clk 0:00:12.4]} 66... Kf6 {[%clk
0:00:46.3]} 67. Kb5 {[%clk 0:00:13.4]} 67... Kg7 {[%clk 0:00:47.2]} 68. Kb6
{[%clk 0:00:08.6]} 68... Kf6 {[%clk 0:00:46.6]} 69. Kc6 {[%clk 0:00:07.9]} 69...
Kg7 {[%clk 0:00:46.6]} 70. Kd6 {[%clk 0:00:09]} 70... Kf6 {[%clk 0:00:47.9]} 71.
Kd5 {[%clk 0:00:07.6]} 71... Kg7 {[%clk 0:00:32.9]} 72. Ke5 {[%clk 0:00:05.7]}
72... Nc5 {[%clk 0:00:31.3]} 73. Kf5 {[%clk 0:00:05.2]} 73... Nxa4 {[%clk
0:00:32.4]} 74. Nh5+ {[%clk 0:00:05.9]} 74... Kg8 {[%clk 0:00:33.3]} 75. g7
{[%clk 0:00:04.7]} 75... Nc5 {[%clk 0:00:34.3]} 76. Kg6 {[%clk 0:00:05]} 76...
Nd7 {[%clk 0:00:32.7]} 77. Ng3 {[%clk 0:00:05]} 77... Nf8+ {[%clk 0:00:20.8]}
78. Kh6 {[%clk 0:00:03.4]} 78... Ne6 {[%clk 0:00:21.6]} 79. Ne4 {[%clk
0:00:03.2]} 79... Nxg7 {[%clk 0:00:20.7]} 80. Kg6 {[%clk 0:00:04.6]} 80... a4
{[%clk 0:00:21.1]} 81. Nc3 {[%clk 0:00:05.8]} 81... a3 {[%clk 0:00:21.6]} 82.
Kf6 {[%clk 0:00:07.4]} 82... Nh5+ {[%clk 0:00:22.1]} 83. Ke5 {[%clk 0:00:08.5]}
83... Ng3 {[%clk 0:00:23.7]} 84. Kd5 {[%clk 0:00:08.4]} 84... Ne2 {[%clk
0:00:24.5]} 85. Na2 {[%clk 0:00:09.2]} 85... Nc1 {[%clk 0:00:20.5]} 86. Nxc1
{[%clk 0:00:09.3]} 86... a2 {[%clk 0:00:22.4]} 87. Nxa2 {[%clk 0:00:09.7]}
1/2-1/2